Cogmind - Beta 10.2 @@@ ROGUE MODE // 2021.09.03 @ 15:54:49 // Halloween2020/ForbiddenLore Player: ConfusingDalek Result: Destroyed by D-53 Grenadier with Mini Grenade Launcher Performance ------------- Evolutions (0) 0 Regions Visited (4) 800 Robots Destroyed (30) 150 Value Destroyed (503) 503 Prototype IDs (6) 120 Alien Tech Used (0) 0 Bonus (25) 25 TOTAL SCORE: 1598 Bonus ------- Follower Combat Kills 25 Cogmind --------- Core Integrity 0/250 Matter 284/300 Energy 91/100 System Corruption 1% Temperature Cool (1) Movement Walking (150) Ox1 Location -9/Mines Parts ------- > --- POWER (1) -------- (None) > --- PROPULSION (2) --- Aluminum Leg > --- UTILITY (2) ------ Large Storage Unit Improved Signal Interpreter > --- WEAPON (2) ------- (None) > --- INVENTORY (10) --- Light Nuclear Core Makeshift Leg Medium Storage Unit Medium Storage Unit Large Storage Unit Structural Scanner Heavy Assault Rifle Peak State ------------ > --- POWER ------------ Light Ion Engine > --- PROPULSION ------- Wheel Wheel > --- UTILITY ---------- Medium Storage Unit Large Storage Unit > --- WEAPON ----------- Heavy Assault Rifle Heavy Assault Rifle > --- INVENTORY -------- Light Ion Engine Light Nuclear Core Aluminum Leg Aluminum Leg Aluminum Leg Aluminum Leg Makeshift Leg Medium Storage Unit Large Storage Unit Structural Scanner Propulsion Shielding Heavy Assault Rifle Heavy Assault Rifle Grenade Launcher [Rating: 11] Favorites ----------- Power Light Ion Engine Engine Light Ion Engine Propulsion Aluminum Leg Leg Aluminum Leg Wheel Wheel Utility Large Storage Unit Storage Large Storage Unit Processor Improved Signal Interpreter Weapon Heavy Assault Rifle Energy Gun Particle Gun Ballistic Gun Heavy Assault Rifle Launcher Grenade Launcher Build | -11 -10 -10 -10 -9 ------- Run | Scr Mat Min Exi Min Slots Evolved . | . . . . . Power . | . . . . . Propulsion . | . . . . . Utility . | . . . . . Weapon . | . . . . . Parts Attached 32 | 7 10 6 . 9 Power 3 | 1 . 1 . 1 Engine 3 | 1 . 1 . 1 Core . | . . . . . Reactor . | . . . . . Propulsion 10 | 2 4 . . 4 Treads . | . . . . . Leg 8 | 2 2 . . 4 Wheel 2 | . 2 . . . Hover . | . . . . . Flight . | . . . . . Utility 5 | 2 2 . . 1 Device . | . . . . . Storage 4 | 2 2 . . . Processor 1 | . . . . 1 Hackware . | . . . . . Protection . | . . . . . Artifact . | . . . . . Weapon 14 | 2 4 5 . 3 Energy Gun 2 | . 2 . . . Energy Cannon . | . . . . . Ballistic Gun 9 | 2 2 3 . 2 Ballistic Cannon . | . . . . . Launcher 3 | . . 2 . 1 Special Weapon . | . . . . . Impact Weapon . | . . . . . Slashing Weapon . | . . . . . Piercing Weapon . | . . . . . Special Melee Weapon . | . . . . . Unidentified Prototypes . | . . . . . Parts Lost 12 | . . 1 . 11 Power 3 | . . 1 . 2 Propulsion 5 | . . . . 5 Utility . | . . . . . Weapon 4 | . . . . 4 Highest Loss Streak 7 | . . 1 . 7 Average Slot Usage (%) 99 | . 99 99 100 98 Engine 13 | . 14 13 14 13 Leg 13 | . 23 . . 25 Wheel 14 | . 4 28 28 2 Storage 27 | . 28 28 28 26 Ballistic Gun 27 | . 27 26 28 26 Naked Turns . | . . . . . Heaviest Build 33 | 13 33 33 33 33 Greatest Support 20 | 20 20 20 20 20 Greatest Overweight (x) 1 | . 1 1 1 1 Average Overweight (x) . | . . 1 1 1 Largest Inventory Capacity 14 | 8 14 14 14 14 Average Capacity 12 | 6 11 14 14 13 Most Carried 14 | 6 13 14 14 14 Average Carried 11 | 3 8 13 14 10 Final Capacity 14 | 8 14 14 14 10 Final Carried 14 | 4 13 14 14 7 Class Distribution -------------------- 100% | Mutant Dominant Class ---------------- Mutant | -10/Materials Mutant | -10/Mines Mutant | -10/Exiles Mutant | -9/Mines Resources | -11 -10 -10 -10 -9 ----------- Run | Scr Mat Min Exi Min Matter Collected 1067 | 278 196 320 . 273 Remotely . | . . . . . Salvage Created 672 | 64 196 217 . 195 Parts 58 | 3 16 23 . 16 Haulers Intercepted . | . . . . . Recyclers Shooed 4 | . 3 . . 1 Parts Field Recycled . | . . . . . Retrieved Matter . | . . . . . Parts Self-Destructed . | . . . . . Prevented . | . . . . . Kills | -11 -10 -10 -10 -9 ------- Run | Scr Mat Min Exi Min Combat Hostiles Destroyed 30 | . 8 9 . 13 Guns 22 | . 8 5 . 9 AOE 8 | . . 4 . 4 Classes Destroyed 5 | 1 2 2 . . Tunneler 3 | . . 3 . . Recycler 2 | 1 . 1 . . Swarmer 19 | . 6 6 . 7 Grunt 6 | . 2 2 . 2 Assembled 5 | . . 1 . 4 Best Kill Streak 7 | 1 4 5 . 7 Combat Bots Only 7 | . 4 3 . 7 Max Kills in Single Turn 3 | 1 1 3 . 2 Gunslinging . | . . . . . Exploded 1 | . . 1 . 1 Melee . | . . . . . Uniques/NPCs Destroyed . | . . . . . Combat | -11 -10 -10 -10 -9 -------- Run | Scr Mat Min Exi Min Damage Taken 1515 | . 340 294 . 881 Core 263 | . 59 37 . 167 Absorbed by Shields . | . . . . . Core Remaining (%) 100 | 100 . . . . Volleys Fired 91 | 4 33 22 . 32 Largest 2 | 2 2 2 . 2 Hottest 53 | 40 46 53 . 53 Shots Fired 175 | 8 66 37 . 64 Gun 157 | 8 66 24 . 59 Cannon . | . . . . . Launcher 18 | . . 13 . 5 Special . | . . . . . Kinetic 157 | 8 66 24 . 59 Thermal . | . . . . . Explosive 18 | . . 13 . 5 Electromagnetic . | . . . . . Robot Hit Streak 9 | 5 9 6 . 6 Robot Miss Streak 7 | 3 7 4 . 3 Penetration Max . | . . . . . Secondary Targets 2 | . 1 . . 1 Max Gunslinging Chain 1 | . 1 . . 1 Shots Hit Robots 93 | 5 35 15 . 38 Core Hits 52 | 2 11 20 . 19 Critical Hits . | . . . . . Critical Kills . | . . . . . Critical Parts Destroyed . | . . . . . Melee Attacks . | . . . . . Impact . | . . . . . Slashing . | . . . . . Piercing . | . . . . . Sneak Attacks . | . . . . . Combat Hostiles . | . . . . . Follow-up Attacks . | . . . . . Damage Inflicted 1906 | 34 525 642 . 705 Guns 1219 | 34 525 202 . 458 Cannons . | . . . . . Explosions 687 | . . 440 . 247 Melee . | . . . . . Ramming . | . . . . . Kinetic 1219 | 34 525 202 . 458 Thermal . | . . . . . Explosive 687 | . . 440 . 247 Electromagnetic . | . . . . . Impact . | . . . . . Slashing . | . . . . . Piercing . | . . . . . Highest Corruption 1 | . 1 1 1 1 Average Corruption 1 | . 1 1 1 1 Corruption Purged . | . . . . . Effects 11 | . 4 3 2 2 Message Errors 4 | . 2 1 . 1 Energy Discharges 4 | . 2 1 1 . Data Loss (minor) 1 | . . . 1 . Targeting Errors 2 | . . 1 . 1 Overload Shots . | . . . . . Overflow Damage . | . . . . . Projectiles . | . . . . . Explosions . | . . . . . Melee . | . . . . . Knockbacks . | . . . . . Impact . | . . . . . Kinetic . | . . . . . Secondary . | . . . . . Self-Inflicted Damage 93 | . . 93 . . Shots 5 | . . 5 . . Rammed . | . . . . . Targets Rammed . | . . . . . Kicked . | . . . . . Crushed . | . . . . . Highest Temperature 9 | . 4 9 . 5 Average Temperature 3 | . 3 6 . 3 Received Heat Transfer 234 | . 84 30 . 120 Siege Activations . | . . . . . Robots Corrupted . | . . . . . Combat Hostiles . | . . . . . Parts Fried . | . . . . . Impact Corruptions . | . . . . . Robots Melted . | . . . . . Combat Hostiles . | . . . . . Parts Melted . | . . . . . Heat Transferred . | . . . . . Parts Sabotaged . | . . . . . Parts Stolen . | . . . . . Parts Stripped . | . . . . . Power Chain Reactions . | . . . . . Missiles Intercepted . | . . . . . Alert | -11 -10 -10 -10 -9 ------- Run | Scr Mat Min Exi Min Peak Influence 278 | 5 175 278 . 245 Initial 67 | . 3 67 . . Average 109 | 1 64 168 . 128 Maximum Alert Level 1 | . . 1 . 1 Low Security (%) 84 | 100 100 57 . 87 Level 1 15 | . . 42 . 12 Level 2 . | . . . . . Level 3 . | . . . . . Level 4 . | . . . . . Level 5 . | . . . . . High Security . | . . . . . Max Security . | . . . . . Squads Dispatched 2 | . 2 . . . Investigation 1 | . 1 . . . Extermination . | . . . . . Reinforcement 1 | . 1 . . . Assault . | . . . . . Garrison . | . . . . . Intercept . | . . . . . Construction Impeded . | . . . . . Haulers Reinforced . | . . . . . Stealth | -11 -10 -10 -10 -9 --------- Run | Scr Mat Min Exi Min Distress Signals . | . . . . . Communications Jammed . | . . . . . Distress Signals . | . . . . . Times Spotted 40 | . 13 10 . 17 Peak Tracking Total 4 | . 4 3 . 4 Tactical Retreats 1 | . 1 . . . Traps | -11 -10 -10 -10 -9 ------- Run | Scr Mat Min Exi Min Traps Triggered 1 | . 1 . . . Indirectly . | . . . . . Trap Hack Attempts . | . . . . . Triggered . | . . . . . Disarmed . | . . . . . Reprogrammed . | . . . . . Reused . | . . . . . Traps Extracted . | . . . . . Installed . | . . . . . Triggered . | . . . . . Machines | -11 -10 -10 -10 -9 ---------- Run | Scr Mat Min Exi Min Machines Disabled 5 | . 1 . . 4 Max in Single Turn 2 | . 1 . . 2 Machines Sabotaged . | . . . . . Garrisons Compromised . | . . . . . Overloaded Fab Kills . | . . . . . Fab Network Shutdowns . | . . . . . Hacking | -11 -10 -10 -10 -9 --------- Run | Scr Mat Min Exi Min Machines Accessed 9 | . 5 1 3 . Terminals 6 | . 5 1 . . Fabricators . | . . . . . Repair Stations . | . . . . . Recycling Units . | . . . . . Scanalyzers . | . . . . . Garrison Access . | . . . . . Total Hacks 33 | . 18 5 10 . Successful 22 | . 9 3 10 . Failed 10 | . 8 2 . . Catastrophic 1 | . 1 . . . Database Lockouts 1 | . 1 . . . Manual 12 | . 7 5 . . Terminals 23 | . 18 5 . . Fabricators . | . . . . . Repair Stations . | . . . . . Recycling Units . | . . . . . Scanalyzers . | . . . . . Garrison Access . | . . . . . Terminal Hacks 19 | . 7 2 10 . Record 10 | . . . 10 . Prototype ID Bank 6 | . 4 2 . . Locate Traps 1 | . 1 . . . Hauler Manifests 1 | . 1 . . . Zone Layout 1 | . 1 . . . Fabricator Hacks . | . . . . . Repair Station Hacks . | . . . . . Recycling Unit Hacks . | . . . . . Scanalyzer . | . . . . . Garrison Access Hacks . | . . . . . Unauthorized Hacks 3 | . 2 1 . . Terminals 3 | . 2 1 . . Track 2 | . 1 1 . . Botnet 1 | . 1 . . . Fabricators . | . . . . . Repair Stations . | . . . . . Recycling Units . | . . . . . Scanalyzers . | . . . . . Garrison Access . | . . . . . Data Cores Recovered . | . . . . . Used . | . . . . . Hacking Detections 6 | . 5 1 . . Full Trace Events 3 | . 3 . . . Feedback Events 1 | . 1 . . . Corruption 1 | . 1 . . . Feedback Blocked . | . . . . . Robot Schematics Acquired . | . . . . . Robots Built . | . . . . . Matter . | . . . . . Time . | . . . . . Total Robot Build Rating . | . . . . . Part Schematics Acquired . | . . . . . Parts Built . | . . . . . Matter . | . . . . . Time . | . . . . . Total Part Build Rating . | . . . . . Parts Repaired . | . . . . . Time . | . . . . . Parts Recycled . | . . . . . Recycled Matter . | . . . . . Retrieved Matter . | . . . . . Retrieved Components . | . . . . . Parts Scanalyzed . | . . . . . Part Schematics Acquired . | . . . . . Parts Damaged . | . . . . . Bothacking | -11 -10 -10 -10 -9 ------------ Run | Scr Mat Min Exi Min Used RIF Installer . | . . . . . Robots Hacked . | . . . . . Non-combat . | . . . . . Combat . | . . . . . Robot Hacks Applied . | . . . . . Relay Couplers Released . | . . . . . Robots Rewired . | . . . . . Allies Hacked . | . . . . . Hacks Repelled . | . . . . . Allies | -11 -10 -10 -10 -9 -------- Run | Scr Mat Min Exi Min Total Allies 2 | . . 2 . . Largest Group 2 | . . 2 1 . Highest-Rated Group 41 | . . 41 31 . Highest-Rated Ally 31 | . . 31 31 . Total Orders . | . . . . . Ally Attacks 1 | . . 1 . . Total Damage 22 | . . 22 . . Kills 1 | . . 1 . . Allies Corrupted . | . . . . . Allies Melted . | . . . . . Intel | -11 -10 -10 -10 -9 ------- Run | Scr Mat Min Exi Min Robot Analysis Total . | . . . . . Derelict Logs Recovered 2 | . . 1 . 1 Drone Launches . | . . . . . Drone Recoveries . | . . . . . Exploration | -11 -10 -10 -10 -9 ------------- Run | Scr Mat Min Exi Min Turns Passed 2333 | 85 689 503 486 570 Spaces Moved 1839 | 51 460 471 540 317 Core 2 | 2 . . . . Treads . | . . . . . Legs 690 | 49 346 . . 295 Wheels 1147 | . 114 471 540 22 Hover . | . . . . . Flight . | . . . . . Fastest Speed 50 | 50 90 90 90 90 Average Speed 108 | 117 121 90 90 145 Slowest Speed 150 | 120 150 90 90 150 Overloaded Moves . | . . . . . Propulsion Burnouts . | . . . . . Robots Hopped . | . . . . . Cave-ins Triggered . | . . . . . Exploration Rate (%) 66 | 6 68 93 92 72 Regions Visited 4 Branch Regions 3 Pre-discovered Areas 1 | . . . 1 . Known Exits Taken . | . . . . . Unknown Exits Taken 4 | 1 1 1 1 . Scrap Searched 2 | . . 1 . 1 Spaces Dug . | . . . . . Terrain Destroyed 85 | . . 67 . 18 Melee . | . . . . . Projectile . | . . . . . AOE 85 | . . 67 . 18 Terrain Rammed . | . . . . . Walls Destroyed . | . . . . . Machines Disabled . | . . . . . Actions | -11 -10 -10 -10 -9 --------- Run | Scr Mat Min Exi Min Total 2002 | 67 524 511 539 361 Wait 14 | . 5 9 . . Move 1835 | 50 459 470 539 317 Hop . | . . . . . Pick Up 20 | 6 9 3 . 2 Fast Attach 9 | 5 4 . . . Attach 10 | 2 . 1 . 7 Detach . | . . . . . Swap 13 | . 6 5 . 2 Drop 10 | . 8 1 . 1 Fire 91 | 4 33 22 . 32 Melee . | . . . . . Ram . | . . . . . Kick . | . . . . . Crush . | . . . . . Escape Stasis . | . . . . . Rewire . | . . . . . Trap . | . . . . . Miscellaneous . | . . . . . Route ------- -11/Scrapyard -10/Materials (discovered 3 exits: [*Mat x2] / *Min) -10/Mines (discovered 3 exits: [*Mat x2] / *Exi) -10/Exiles (discovered 2 exits: [*Min x2]) -9/Mines (discovered 2 exits: *Mat x2) History --------- Turn | Location | Event 17 | -11/Scrapyard | Discovered new exit (range 16) 86 | -11/Scrapyard | Entered Materials 333 | -10/Materials | Build established: Mutant 558 | -10/Materials | Central database locked down 696 | -10/Materials | Discovered new exit (range 5) 730 | -10/Materials | Discovered new exit (range 9) 732 | -10/Materials | Discovered new exit (range 16) 775 | -10/Materials | Entered Mines 805 | -10/Mines | Learned location of 1 exit from Materials 893 | -10/Mines | Discovered new exit (range 9) 1083 | -10/Mines | Excavation squad dispatched 1083 | -10/Mines | A large section of the Mines collapsed 1226 | -10/Mines | Discovered new exit (range 14) 1267 | -10/Mines | Deemed a non-threat by the Exiles lab entrance 1268 | -10/Mines | Discovered new exit (range 5) 1278 | -10/Mines | Entered Exiles 1278 | -10/Exiles | Accompanied by 1 ally 1293 | -10/Exiles | Discovered new exit (range 15) 1308 | -10/Exiles | Led the pair of lost Derelicts to a safe place 1321 | -10/Exiles | Met 8R-AWN 1338 | -10/Exiles | Met EX-HEX 1396 | -10/Exiles | Met EX-BIN 1486 | -10/Exiles | Met EX-DEC 1492 | -10/Exiles | Learned location of Zion (-7) 1523 | -10/Exiles | Discovered new exit (range 11) 1589 | -10/Exiles | Visited The Gauntlet 1764 | -10/Exiles | Entered Mines 1765 | -9/Mines | Assembled infested the area 1835 | -9/Mines | Destroyed 7 combat bots 1841 | -9/Mines | Lost 3 parts (2n1w) 1862 | -9/Mines | Learned Materials emergency access door positions 2147 | -9/Mines | Discovered new exit (range 15) 2171 | -9/Mines | Discovered new exit (range 12) 2263 | -9/Mines | Identified exit to Materials 2309 | -9/Mines | Core integrity fell below 50% 2331 | -9/Mines | Core integrity fell below 20% 2334 | -9/Mines | Destroyed by D-53 Grenadier with Mini Grenade Launcher Last Messages --------------- 02105_ R-06 Scavenger collects Flight Unit. 02147_ EXIT=FOUND 02228_ Searching scrap... 02228_ Found Imp. Signal Interpreter. 02228_ Found Com. Wheel. 02228_ Found Particle Gun. 02228_ Found 16 Matter. 02229_ Acquired 16 matter. 02247_ Acquired Imp. Signal Interpreter. 02259_ Dropped Propulsion Shielding. 02259_ Acquired Lgt. Nuclear Core. 02263_ EXIT=IDENTIFIED: MATERIALS 02304_ Lgt. Ion Engine destroyed. 02323_ Aluminum Leg destroyed. 02325_ K-01 Serf destroyed. 02327_ Aluminum Leg destroyed. 02327_ Hvy. Assault Rifle destroyed. 02327_ Lgt. Ion Engine destroyed. 02330_ The unstable cave ceiling collapses. 02330_ Aluminum Leg destroyed. Map ----- +----------------------------------------------------+ | ???????## #??######???????# #?????? | | ???????# # #???????????????# #?????? | | ?????### #???????????????# ####??? | | ????## ##????????????#### ##?? | | ????# ## ###????????????## [ ### | | ????# %### ### ##??????????????# = # | | ?#??## ##?? #?#####???????????????# #% [* | | ?# ?## #??? ?????????????????????##### #= # | | ?# ## ##??###????????????????????????# ###### | | ?# # #????????????????????????# #????? | | ?# #??????????????????????????# #????? | | ?# #???????????????????????## #????? | | ?## ## ## ##??????????????????????## #????? | | ??# #%#### #??????????????????????# #????? | | ??# # ## #?###""##????????????## #????? | | ??# #? #?# X ?????????#### #????? | | ??# ## ## #?# ######??## ##????? | | ??#?## % ##?# #?## ##?????? | | ???## ### ##??# #?# #??????? | | ???# #? ##???# #?# #??????? | | ???# # #?? #????# #?## ## ##??????? | | ???# ##??? #????# ######### #???????? | | ##### #?????#????# ##???# #???????? | | ##??????????# # ##??# #???????? | | ########???????????# # #### #???????? | | ???????????????????# < @ d #???????? | | ???????????????????# d ######?#####?# | | ???????????????????### Y #?????## ### | | ?????????????????????##### Y ##????## | | ??????????#??????????????# ### # #????## | | ????????## ?????????????######## #????# #### | | ?????### ????????###?#### ### #?#### ##??? | | ????## ??? ???##[!## ### ##??? | | ????# ? #??#"[[ # ## #??? | | ????? ?? #??# / ## ## #??? | | ????? #? #??# / # #??? | | ????? ## #??#"[] # ### ##??? | | ?????? ##?##!!## ##?####### ##???? | | ?????? """ #??###?# #????????# ##????? | | ??????# "" #??????# #???????## ##?????? | | ####### " #???????## ##?????### ##?####? | | # #?????????####?????## !### ## | | #??????????????????# # | | ###????????????????# = # | | # #????????????????## < [ | | #### #?????????????????## | | ###### ## #### #??????????????????###### # | | ## #?? #????????????????????????????######## | | ?# #???????????????????????????????????????? | | ## ######???????????????????????????????????????? | +----------------------------------------------------+ Best States ------------- Heat Dissipation 25 Energy Generation 10 Energy Capacity 125 Matter Stores 300 Matter Capacity 300 Sight Range 16 Terrain Scan Density 10 Evasion (%) 42 Item Schematics ----------------- None Robot Schematics ------------------ None Fabricated ------------ Nothing Alien Tech Used ----------------- None Achievements -------------- None Challenges ------------ None Game ------ Seed AntimatterLauncherFrame Manual? 0 Play Time 00:27:34 Cumulative 91.9 hours Start 2020.11.20 @ 12:57:45 End 2021.09.03 @ 15:54:49 Sessions 2 Manual Loads 0 Difficulty Rogue Special Mode Halloween2020/ForbiddenLore Game No. 80 Rogue 80 Adventurer 0 Explorer 0 Win Type - Total 2 Types 1/0/0/1/0/0/0/0/0 Lore% 50 Gallery% 48 Achievement% 41 Wizard Run 0 Options --------- ASCII 0 Keyboard 0 Movement Arrows Keybinds 0 Fullscreen 1 Font 18/SmallcapsGlow Map View 76x50 Tactical HUD 1 Map Filters NONE Filters NONE Steam 1 RUN: 157e2424-682d-43c8-b7e3-18f630bdb39a